fUST/lending_fUST_20240115
["ID","MTS","AMOUNT","RATE_DAILY","PERIOD"]
[311645901,1705278642514,-500.0,0.00027397,2]
[311645902,1705278642523,-500.0,0.00027397,2]
[311645903,1705278642532,-500.0,0.00027397,2]
[311645904,1705278642541,-500.0,0.00027397,2]
[311645905,1705278642550,-500.0,0.00027397,2]
[311645906,1705278642559,-500.0,0.00027397,2]
[311645907,1705278642569,-500.0,0.00027397,2]
[311645908,1705278642578,-1000.0,0.00027397,2]
[311645909,1705278642587,-500.68191644,0.00027397,2]
[311645910,1705278642596,-500.0,0.00027397,2]
[311645911,1705278642605,-6214.29,0.00027397,2]
[311645912,1705278642614,-500.0,0.00027397,2]
[311645913,1705278642623,-500.0,0.00027397,2]
[311645914,1705278642633,-500.0,0.00027397,2]
[311645915,1705278642642,-500.0,0.00027397,2]
[311645916,1705278642652,-382.37264958,0.00027397,2]
[311645917,1705278642660,-500.0,0.00027397,2]
[311645918,1705278642670,-500.0,0.00027397,2]
[311645919,1705278642679,-500.0,0.00027397,2]
[311645920,1705278642689,-500.0,0.00027397,2]
[311645921,1705278642698,-500.0,0.00027397,2]
[311645922,1705278642707,-500.0,0.00027397,2]
[311645923,1705278642716,-1025.28,0.00027397,2]
[311645924,1705278642725,-500.0,0.00027397,2]
[311645925,1705278642734,-500.0,0.00027397,2]
[311645926,1705278642744,-500.0,0.00027397,2]
[311645927,1705278642753,-500.0,0.00027397,2]
[311645928,1705278642763,-500.0,0.00027397,2]
[311645929,1705278642772,-538.68543026,0.00027397,2]
[311645930,1705278642781,-500.0,0.00027397,2]
[311645931,1705278642791,-500.0,0.00027397,2]
[311645932,1705278642800,-500.0,0.00027397,2]
[311645933,1705278642809,-500.0,0.00027397,2]
[311645934,1705278642818,-1382.86,0.00027397,2]
[311645935,1705278642828,-500.0,0.00027397,2]
[311645936,1705278642837,-500.0,0.00027397,2]
[311645937,1705278642846,-523.53850014,0.00027397,2]
[311645938,1705278642855,-741.81,0.00027397,2]
[311645939,1705278642865,-500.0,0.00027397,2]
[311645940,1705278642875,-500.0,0.00027397,2]
[311645942,1705278642886,-754.71,0.00027397,2]
[311645943,1705278642895,-500.0,0.00027397,2]
[311645944,1705278642904,-500.0,0.00027397,2]
[311645945,1705278642914,-529.08421022,0.00027397,2]
[311645946,1705278642923,-479.04825601,0.00027397,2]
[311645947,1705278642932,-516.46,0.00027397,2]
[311645948,1705278642941,-500.0,0.00027397,2]
[311645949,1705278642950,-1324.08,0.00027397,2]
[311645950,1705278642960,-500.0,0.00027397,2]
[311645951,1705278642969,-500.0,0.00027397,2]
[311645952,1705278642978,-500.0,0.00027397,2]
[311645953,1705278642987,-500.0,0.00027397,2]
[311645955,1705278642996,-500.0,0.00027397,2]
[311645957,1705278643005,-500.0,0.00027397,2]
[311645958,1705278643014,-655.30601003,0.00027397,2]
[311645959,1705278643024,-153.0,0.000274,2]
[311645960,1705278643035,-397.6179268,0.000274,2]
[311645961,1705278643045,-198.8089634,0.000274,2]
[311645962,1705278643055,-153.0,0.000274,2]
[311645963,1705278643065,-500.0,0.00027469,2]
[311645964,1705278643074,-500.0,0.00027534,2]
[311645965,1705278643084,-8394.59999999,0.0002757,2]
[311645966,1705278643093,-326.84593778,0.00027666,2]
[311645967,1705278643102,-6475.34296448,0.00027667,2]
[311645969,1705278643111,-500.0,0.00027669,2]
[311645971,1705278643121,-500.0,0.00027669,2]
[311645972,1705278643130,-500.0,0.00027669,2]
[311645973,1705278643140,-500.0,0.00027669,2]
[311645974,1705278643149,-500.0,0.00027669,2]
[311645975,1705278643159,-500.0,0.00027669,2]
[311645976,1705278643170,-500.0,0.00027669,2]
[311645977,1705278643181,-500.0,0.00027669,2]
[311645978,1705278643192,-156.2615804,0.00027669,2]
[311645979,1705278643201,-239.41948406,0.00027669,2]
[311645980,1705278643210,-500.0,0.00027669,2]
[311645981,1705278643220,-500.0,0.00027669,2]
[311645982,1705278643230,-222.45780924,0.00027669,2]
[311645983,1705278643239,-500.0,0.00027669,2]
[311645984,1705278643248,-213.31239366,0.00027669,2]
[311645985,1705278643258,-500.0,0.00027669,2]
[311645986,1705278643268,-500.0,0.00027669,2]
[311645987,1705278643277,-500.0,0.00027669,2]
[311645988,1705278643286,-500.0,0.00027669,2]
[311645989,1705278643295,-500.0,0.00027669,2]
[311645990,1705278643304,-293.79604819,0.00027669,2]
[311645991,1705278643314,-500.0,0.00027669,2]
[311645992,1705278643323,-500.0,0.00027669,2]
[311645993,1705278643332,-500.0,0.00027669,2]
[311645994,1705278643343,-500.0,0.00027669,2]
[311645995,1705278643353,-500.0,0.00027669,2]
[311645996,1705278643362,-500.0,0.00027669,2]
[311645997,1705278643373,-500.0,0.00027669,2]
[311645998,1705278643384,-500.0,0.00027669,2]
[311645999,1705278643393,-500.0,0.00027669,2]
[311646000,1705278643402,-462.98978979,0.00027669,2]
[311646001,1705278643414,-500.0,0.00027669,2]
[311646002,1705278643423,-500.0,0.00027669,2]
[311646003,1705278643432,-500.0,0.00027669,2]
[311646004,1705278643442,-500.0,0.00027669,2]
[311646005,1705278643451,-500.0,0.00027669,2]
[311646006,1705278643461,-500.0,0.00027669,2]
[311646007,1705278643473,-500.0,0.00027669,2]
[311646008,1705278643483,-500.0,0.00027669,2]
[311646009,1705278643493,-500.0,0.00027669,2]
[311646010,1705278643502,-500.0,0.00027669,2]
[311646011,1705278643511,-500.0,0.00027669,2]
[311646012,1705278643520,-500.0,0.0002767,2]
[311646013,1705278643529,-500.0,0.0002767,2]
[311646014,1705278643539,-500.0,0.0002767,2]
[311646015,1705278643548,-504.19080815,0.00027671,2]
[311646016,1705278643558,-500.0,0.00027671,2]
[311646017,1705278643567,-500.0,0.00027671,2]
[311646018,1705278643577,-500.0,0.00027671,2]
[311646019,1705278643586,-209.81495602,0.00027671,2]
[311646020,1705278643596,-500.0,0.00027671,2]
[311646021,1705278643606,-500.0,0.00027671,2]
[311646022,1705278643615,-1412.16,0.00027671,2]
[311646023,1705278643624,-500.0,0.00027671,2]
[311646024,1705278643634,-500.0,0.00027671,2]
[311646025,1705278643644,-713.94,0.00027671,2]
[311646026,1705278643653,-500.0,0.00027671,2]
[311646027,1705278643662,-500.0,0.00027671,2]
[311646028,1705278643672,-538.47917633,0.00027671,2]
[311646029,1705278643681,-500.0,0.00027671,2]
[311646030,1705278643690,-893.21,0.00027671,2]
[311646031,1705278643708,-500.0,0.00027671,2]
[311646032,1705278643718,-500.0,0.00027671,2]
[311646033,1705278643728,-500.0,0.00027671,2]
[311646034,1705278643737,-519.99430236,0.00027671,2]
[311646035,1705278643746,-500.0,0.00027671,2]
[311646036,1705278643755,-500.94968003,0.00027671,2]
[311646037,1705278643764,-628.49457339,0.00027671,2]
[311646038,1705278643774,-500.0,0.00027671,2]
[311646039,1705278643783,-500.0,0.00027671,2]
[311646040,1705278643792,-500.0,0.00027671,2]
[311646041,1705278643802,-500.0,0.00027671,2]
[311646042,1705278643811,-500.0,0.00027671,2]
[311646043,1705278643821,-500.0,0.00027671,2]
[311646044,1705278643830,-506.8572877,0.00027671,2]
[311646045,1705278643840,-500.0,0.00027671,2]
[311646046,1705278643850,-500.0,0.00027671,2]
[311646047,1705278643859,-500.0,0.00027671,2]
[311646048,1705278643868,-819.13,0.00027671,2]
[311646049,1705278643878,-500.0,0.00027671,2]
[311646050,1705278643887,-517.88552703,0.00027671,2]
[311646051,1705278643896,-600.42425379,0.00027671,2]
[311646052,1705278643905,-500.0,0.00027671,2]
[311646053,1705278643915,-500.0,0.00027671,2]
[311646054,1705278643924,-500.0,0.00027671,2]
[311646055,1705278643933,-502.84066308,0.00027671,2]
[311646056,1705278643943,-500.0,0.00027671,2]
[311646057,1705278643952,-500.0,0.00027671,2]
[311646058,1705278643961,-500.0,0.00027671,2]
[311646059,1705278643970,-500.0,0.00027671,2]
[311646060,1705278643979,-500.0,0.00027671,2]
[311646061,1705278643988,-500.0,0.00027671,2]
[311646062,1705278643998,-500.0,0.00027671,2]
[311646063,1705278644007,-500.0,0.00027671,2]
[311646064,1705278644016,-500.0,0.00027671,2]
[311646065,1705278644025,-500.0,0.00027671,2]
[311646066,1705278644034,-500.0,0.00027671,2]
[311646067,1705278644043,-500.0,0.00027671,2]
[311646068,1705278644053,-521.66517936,0.00027671,2]
[311646069,1705278644063,-500.0,0.00027671,2]
[311646070,1705278644072,-500.0,0.00027671,2]
[311646071,1705278644081,-336.65608746,0.00027671,2]
[311646072,1705278644090,-493.90003531,0.00027671,2]
[311646073,1705278644100,-500.0,0.00027671,2]
[311646074,1705278644109,-500.0,0.00027671,2]
[311646075,1705278644118,-500.0,0.00027671,2]
[311646076,1705278644127,-500.0,0.00027671,2]
[311646077,1705278644138,-1006.92575505,0.00027671,2]
[311646078,1705278644148,-683.84,0.00027671,2]
[311646079,1705278644157,-500.0,0.00027671,2]
[311646080,1705278644167,-500.0,0.00027671,2]
[311646081,1705278644176,-500.0,0.00027671,2]
[311646082,1705278644185,-509.48319526,0.00027671,2]
[311646083,1705278644194,-500.0,0.00027671,2]
[311646084,1705278644203,-500.0,0.00027671,2]
[311646085,1705278644213,-500.0,0.00027671,2]
[311646086,1705278644222,-1000.0,0.00027671,2]
[311646087,1705278644231,-500.0,0.00027671,2]
[311646088,1705278644241,-2279.41,0.00027671,2]
[311646089,1705278644251,-500.0,0.00027671,2]
[311646090,1705278644260,-713.41,0.00027671,2]
[311646091,1705278644270,-500.0,0.00027671,2]
[311646092,1705278644382,-500.0,0.00027671,2]
[311646093,1705278644393,-500.0,0.00027671,2]
[311646094,1705278644402,-500.0,0.00027671,2]
[311646095,1705278644412,-317.89344166,0.00027671,2]
[311646096,1705278644421,-1094.36,0.00027671,2]
[311646097,1705278644430,-726.47,0.00027671,2]
[311646098,1705278644439,-1690.99,0.00027671,2]
[311646099,1705278644448,-500.0,0.00027671,2]
[311646100,1705278644460,-1087.66,0.00027671,2]
[311646101,1705278644469,-500.0,0.00027671,2]
[311646102,1705278644478,-500.0,0.00027671,2]
[311646103,1705278644489,-500.0,0.00027671,2]
[311646104,1705278644498,-500.0,0.00027671,2]
[311646105,1705278644508,-500.0,0.00027671,2]
[311646106,1705278644518,-500.0,0.00027671,2]
[311646107,1705278644527,-500.0,0.00027671,2]
[311646108,1705278644538,-771.55,0.00027671,2]
[311646109,1705278644548,-500.0,0.00027671,2]
[311646110,1705278644557,-500.0,0.00027671,2]
[311646111,1705278644566,-500.0,0.00027671,2]
[311646112,1705278644575,-500.0,0.00027671,2]
[311646113,1705278644584,-500.0,0.00027671,2]
[311646114,1705278644593,-2647.22,0.00027671,2]
[311646115,1705278644603,-527.29,0.00027671,2]
[311646116,1705278644612,-500.0,0.00027671,2]
[311646117,1705278644621,-500.0,0.00027671,2]
[311646118,1705278644630,-500.0,0.00027671,2]
[311646119,1705278644640,-500.0,0.00027671,2]
[311646120,1705278644649,-500.0,0.00027671,2]
[311646121,1705278644659,-500.0,0.00027671,2]
[311646122,1705278644667,-500.0,0.00027671,2]
[311646123,1705278644677,-500.0,0.00027671,2]
[311646124,1705278644686,-500.0,0.00027671,2]
[311646125,1705278644695,-500.0,0.00027671,2]
[311646126,1705278644705,-500.0,0.00027671,2]
[311646127,1705278644715,-500.0,0.00027671,2]
[311646128,1705278644723,-500.0,0.00027671,2]
[311646129,1705278644733,-500.0,0.00027671,2]
[311646130,1705278644743,-500.0,0.00027671,2]
[311646131,1705278644752,-502.50157674,0.00027671,5]
[311646132,1705278644762,-500.0,0.00027671,2]
[311646133,1705278644771,-288.23732687,0.00027671,2]
[311646134,1705278644781,-1832.4,0.00027671,2]
[311646135,1705278644790,-500.0,0.00027671,2]
[311646136,1705278644799,-500.0,0.00027671,2]
[311646137,1705278644808,-703.55,0.00027671,2]
[311646138,1705278644819,-500.0,0.00027671,2]
[311646139,1705278644829,-500.0,0.00027671,2]
[311646140,1705278644839,-500.0,0.00027671,2]
[311646141,1705278644848,-581.32,0.00027671,2]
[311646142,1705278644857,-500.0,0.00027671,2]
[311646143,1705278644867,-500.0,0.00027671,2]
[311646144,1705278644878,-500.0,0.00027671,2]
[311646145,1705278644888,-2514.64,0.00027671,2]
[311646146,1705278644897,-500.0,0.00027671,2]
[311646147,1705278644906,-500.0,0.00027671,2]
[311646148,1705278644915,-500.0,0.00027671,2]
[311646149,1705278644924,-500.0,0.00027671,2]
[311646150,1705278644933,-500.0,0.00027671,2]
[311646151,1705278644943,-501.52822313,0.00027671,2]
[311646152,1705278644952,-500.0,0.00027671,2]
[311646153,1705278644961,-1362.21,0.00027671,2]
[311646154,1705278644971,-376.85988352,0.00027671,2]
[311646155,1705278644980,-1385.38,0.00027671,2]
[311646156,1705278644989,-500.0,0.00027671,2]
[311646157,1705278644999,-1474.29,0.00027671,2]
[311646158,1705278645009,-500.0,0.00027671,2]
[311646159,1705278645019,-532.63,0.00027671,2]
[311646160,1705278645029,-963.0,0.00027671,2]
[311646161,1705278645038,-500.0,0.00027671,2]
[311646162,1705278645048,-721.53,0.00027671,2]
[311646163,1705278645059,-500.0,0.00027671,2]
[311646164,1705278645068,-500.0,0.00027671,2]
[311646165,1705278645078,-500.0,0.00027671,2]
[311646166,1705278645088,-7959.38,0.00027671,2]
[311646167,1705278645098,-2910.13,0.00027671,2]
[311646168,1705278645107,-500.0,0.00027671,2]
[311646169,1705278645116,-500.0,0.00027671,2]
[311646170,1705278645126,-8063.19,0.00027671,2]
[311646171,1705278645135,-500.0,0.00027671,2]
[311646172,1705278645145,-500.0,0.00027671,2]
[311646173,1705278645154,-350.0,0.00027671,2]
[311646174,1705278645163,-3669.35,0.00027671,2]
[311646175,1705278645177,-500.0,0.00027671,2]
[311646176,1705278645186,-500.0,0.00027671,2]
[311646177,1705278645195,-500.0,0.00027671,2]
[311646178,1705278645204,-500.0,0.00027671,2]
[311646179,1705278645214,-23843.59,0.00027671,2]
[311646180,1705278645223,-308.24075342,0.00027671,2]
[311646181,1705278645233,-500.0,0.00027671,2]
[311646182,1705278645242,-500.0,0.00027671,2]
[311646183,1705278645253,-500.0,0.00027671,2]
[311646184,1705278645263,-500.0,0.00027671,2]
[311646185,1705278645273,-500.0,0.00027671,2]
[311646186,1705278645282,-500.0,0.00027671,2]
[311646187,1705278645291,-2011.65,0.00027671,2]
[311646188,1705278645300,-16469.22,0.00027671,2]
[311646189,1705278645309,-500.0,0.00027671,2]
[311646190,1705278645318,-500.0,0.00027671,2]
[311646191,1705278645327,-500.0,0.00027671,2]
[311646192,1705278645337,-500.0,0.00027671,2]
[311646193,1705278645346,-500.0,0.00027671,2]
[311646194,1705278645355,-4854.21,0.00027671,2]
[311646195,1705278645365,-906.74,0.00027671,2]
[311646196,1705278645374,-500.0,0.00027671,2]
[311646197,1705278645383,-500.0,0.00027671,2]
[311646198,1705278645393,-500.0,0.00027671,2]
[311646199,1705278645402,-500.0,0.00027671,2]
[311646200,1705278645411,-500.0,0.00027671,2]
[311646201,1705278645421,-1000.0,0.00027671,2]
[311646202,1705278645431,-500.0,0.00027671,2]
[311646203,1705278645441,-6214.29,0.00027671,2]
[311646204,1705278645451,-500.0,0.00027671,2]
[311646205,1705278645461,-500.0,0.00027671,2]
[311646206,1705278645471,-500.0,0.00027671,2]
[311646207,1705278645482,-500.0,0.00027671,2]
[311646208,1705278645491,-500.0,0.00027671,2]
[311646209,1705278645501,-500.0,0.00027671,2]
[311646210,1705278645511,-1025.28,0.00027671,2]
[311646211,1705278645521,-500.0,0.00027671,2]
[311646212,1705278645530,-500.0,0.00027671,2]
[311646213,1705278645540,-500.0,0.00027671,2]
[311646214,1705278645550,-500.0,0.00027671,2]
[311646215,1705278645560,-1382.86,0.00027671,2]
[311646216,1705278645570,-500.0,0.00027671,2]
[311646217,1705278645579,-500.0,0.00027671,2]
[311646218,1705278645588,-741.81,0.00027671,2]
[311646219,1705278645598,-500.0,0.00027671,2]
[311646220,1705278645608,-500.0,0.00027671,2]
[311646221,1705278645618,-754.71,0.00027671,2]
[311646222,1705278645628,-500.0,0.00027671,2]
[311646223,1705278645638,-500.0,0.00027671,2]
[311646224,1705278645648,-516.46,0.00027671,2]
[311646225,1705278645657,-1324.08,0.00027671,2]
[311646226,1705278645668,-500.0,0.00027671,2]
[311646227,1705278645678,-500.0,0.00027671,2]
[311646228,1705278645689,-500.0,0.00027671,2]
[311646229,1705278645700,-500.0,0.00027671,2]
[311646230,1705278645710,-500.0,0.00027671,2]
[311646231,1705278645719,-153.0,0.00027671,2]
[311646232,1705278645729,-688.18928243,0.000277,2]
[311646233,1705278645738,-500.0,0.00027808,2]
[311646234,1705278645748,-703.82096676,0.00027943,5]
[311646235,1705278645758,-470.4,0.00027943,4]
[311646236,1705278645768,-500.0,0.00027943,4]
[311646237,1705278645778,-496.72617691,0.00027943,4]
[311646238,1705278645787,-477.39420188,0.00027943,4]
[311646239,1705278645797,-258.11712698,0.00027943,4]
[311646240,1705278645807,-500.0,0.00027944,2]
[311646241,1705278645816,-500.0,0.00027944,2]
[311646242,1705278645826,-500.0,0.00027944,2]
[311646243,1705278645835,-551.35486565,0.00027944,14]
[311646244,1705278645845,-500.0,0.00027945,2]
[311646245,1705278645856,-500.0,0.00027945,2]
[311646246,1705278645865,-500.0,0.00027945,2]
[311646247,1705278645874,-500.0,0.00027945,2]
[311646248,1705278645884,-1412.16,0.00027945,2]
[311646249,1705278645895,-500.0,0.00027945,2]
[311646250,1705278645905,-713.94,0.00027945,2]
[311646251,1705278645915,-500.0,0.00027945,2]
[311646252,1705278645924,-500.0,0.00027945,2]
[311646253,1705278645934,-508.23488749,0.00027945,2]
[311646254,1705278645944,-893.21,0.00027945,2]
[311646255,1705278645953,-500.0,0.00027945,2]
[311646256,1705278645963,-500.0,0.00027945,2]
[311646257,1705278645973,-819.13,0.00027945,2]
[311646258,1705278645982,-583.1174725,0.00027945,2]
[311646259,1705278645993,-500.0,0.00027945,2]
[311646260,1705278646003,-500.0,0.00027945,2]
[311646261,1705278646012,-500.0,0.00027945,2]
[311646262,1705278646022,-151.3743688,0.00027945,2]
[311646263,1705278646031,-500.0,0.00027945,2]
[311646264,1705278646040,-500.0,0.00027945,2]
[311646265,1705278646049,-500.0,0.00027945,2]
[311646266,1705278646058,-683.84,0.00027945,2]
[311646267,1705278646068,-500.0,0.00027945,2]
[311646268,1705278646077,-500.0,0.00027945,2]
[311646269,1705278646086,-500.0,0.00027945,2]
[311646270,1705278646095,-181.602436,0.00027945,2]
[311646271,1705278646105,-500.0,0.00027945,2]
[311646272,1705278646115,-2279.41,0.00027945,2]
[311646273,1705278646124,-500.0,0.00027945,2]
[311646274,1705278646134,-713.41,0.00027945,2]
[311646275,1705278646145,-359.68166785,0.00027945,2]
[311646276,1705278646154,-500.0,0.00027945,2]
[311646277,1705278646164,-1094.36,0.00027945,2]
[311646278,1705278646174,-726.47,0.00027945,2]
[311646279,1705278646184,-1690.99,0.00027945,2]
[311646280,1705278646193,-1087.66,0.00027945,2]
[311646281,1705278646202,-500.0,0.00027945,2]
[311646282,1705278646284,-500.0,0.00027945,2]
[311646283,1705278646294,-500.0,0.00027945,2]
[311646284,1705278646303,-500.0,0.00027945,2]
[311646285,1705278646313,-500.0,0.00027945,2]
[311646286,1705278646322,-771.55,0.00027945,2]
[311646287,1705278646332,-500.0,0.00027945,2]
[311646288,1705278646341,-500.0,0.00027945,2]
[311646289,1705278646352,-500.0,0.00027945,2]
[311646290,1705278646361,-500.0,0.00027945,2]
[311646291,1705278646370,-2647.22,0.00027945,2]
[311646292,1705278646379,-527.29,0.00027945,2]
[311646293,1705278646391,-500.0,0.00027945,2]
[311646294,1705278646400,-500.0,0.00027945,2]
[311646295,1705278646410,-500.0,0.00027945,2]
[311646296,1705278646420,-500.0,0.00027945,2]
[311646297,1705278646429,-500.0,0.00027945,2]
[311646298,1705278646439,-500.0,0.00027945,2]
[311646299,1705278646448,-500.0,0.00027945,2]
[311646300,1705278646458,-500.0,0.00027945,2]
[311646301,1705278646467,-500.0,0.00027945,2]
[311646302,1705278646476,-1832.4,0.00027945,2]
[311646303,1705278646486,-500.0,0.00027945,2]
[311646304,1705278646496,-500.0,0.00027945,2]
[311646305,1705278646505,-703.55,0.00027945,2]
[311646306,1705278646514,-301.46968522,0.00027945,2]
[311646307,1705278646523,-500.0,0.00027945,2]
[311646308,1705278646533,-500.0,0.00027945,2]
[311646309,1705278646543,-581.32,0.00027945,2]
[311646310,1705278646553,-500.0,0.00027945,2]
[311646311,1705278646562,-500.0,0.00027945,2]
[311646312,1705278646572,-616.08704125,0.00027945,2]
[311646313,1705278646581,-2514.64,0.00027945,2]
[311646314,1705278646591,-500.0,0.00027945,2]
[311646315,1705278646600,-500.0,0.00027945,2]
[311646316,1705278646610,-500.0,0.00027945,2]
[311646317,1705278646619,-500.0,0.00027945,2]
[311646318,1705278646628,-500.0,0.00027945,2]
[311646319,1705278646638,-1362.21,0.00027945,2]
[311646320,1705278646648,-1385.38,0.00027945,2]
[311646321,1705278646657,-1474.29,0.00027945,2]
[311646322,1705278646667,-532.63,0.00027945,2]
[311646323,1705278646676,-963.0,0.00027945,2]
[311646324,1705278646686,-597.80011119,0.00027945,2]
[311646325,1705278646695,-721.53,0.00027945,2]
[311646326,1705278646705,-500.0,0.00027945,2]
[311646327,1705278646715,-500.0,0.00027945,2]
[311646328,1705278646724,-500.0,0.00027945,2]
[311646329,1705278646734,-7959.38,0.00027945,2]
[311646330,1705278646743,-2910.13,0.00027945,2]
[311646331,1705278646753,-500.0,0.00027945,2]
[311646332,1705278646762,-8063.19,0.00027945,2]
[311646333,1705278646772,-500.0,0.00027945,2]
[311646334,1705278646782,-500.0,0.00027945,2]
[311646335,1705278646792,-3669.35,0.00027945,2]
[311646336,1705278646801,-500.0,0.00027945,2]
[311646337,1705278646810,-500.0,0.00027945,2]
[311646339,1705278646820,-273.15317203,0.00027945,2]
[311646340,1705278646829,-500.0,0.00027945,2]
[311646341,1705278646839,-23843.59,0.00027945,2]
[311646342,1705278646849,-329.27294652,0.00027945,2]
[311646343,1705278646858,-500.0,0.00027945,2]
[311646344,1705278646867,-500.0,0.00027945,2]
[311646345,1705278646876,-500.0,0.00027945,2]
[311646347,1705278646886,-500.0,0.00027945,2]
[311646349,1705278646895,-2011.65,0.00027945,2]
[311646350,1705278646904,-16469.22,0.00027945,2]
[311646352,1705278646914,-500.0,0.00027945,2]
[311646353,1705278646924,-500.0,0.00027945,2]
[311646354,1705278646934,-500.0,0.00027945,2]
[311646355,1705278646943,-256.16370604,0.00027945,2]
[311646357,1705278646952,-4854.21,0.00027945,2]
[311646359,1705278646962,-906.74,0.00027945,2]
[311646360,1705278646972,-500.0,0.00027945,2]
[311646361,1705278646982,-500.0,0.00027945,2]
[311646362,1705278646991,-500.0,0.00027945,2]
[311646363,1705278647001,-577.38270895,0.00027945,2]
[311646364,1705278647010,-1000.0,0.00027945,2]
[311646365,1705278647019,-500.0,0.00027945,2]
[311646366,1705278647028,-6214.29,0.00027945,2]
[311646368,1705278647037,-500.0,0.00027945,2]
[311646369,1705278647046,-360.84061127,0.00027945,2]
[311646370,1705278647056,-500.0,0.00027945,2]
[311646371,1705278647066,-500.0,0.00027945,2]
[311646372,1705278647076,-500.0,0.00027945,2]
[311646373,1705278647085,-1025.28,0.00027945,2]
[311646374,1705278647095,-500.0,0.00027945,2]
[311646375,1705278647104,-500.0,0.00027945,2]
[311646376,1705278647113,-500.0,0.00027945,2]
[311646377,1705278647122,-454.88676666,0.00027945,2]
[311646378,1705278647132,-1382.86,0.00027945,2]
[311646379,1705278647143,-500.0,0.00027945,2]
[311646380,1705278647152,-500.0,0.00027945,2]
[311646381,1705278647163,-741.81,0.00027945,2]
[311646382,1705278647177,-500.0,0.00027945,2]
[311646383,1705278647186,-754.71,0.00027945,2]
[311646384,1705278647196,-500.0,0.00027945,2]
[311646385,1705278647205,-516.46,0.00027945,2]
[311646386,1705278647214,-1324.08,0.00027945,2]
[311646387,1705278647224,-500.0,0.00027945,2]
[311646388,1705278647233,-500.0,0.00027945,2]
[311646389,1705278647243,-500.0,0.00027945,2]
[311646390,1705278647253,-500.0,0.00027945,2]
[311646391,1705278647262,-2041.102221,0.00028,2]
[311646392,1705278647271,-507.13354579,0.00028078,2]
[311646393,1705278647280,-2821.93852841,0.00028218,2]
[311646394,1705278647291,-500.0,0.00028218,2]
[311646395,1705278647301,-152.61610238,0.00028218,2]
[311646396,1705278647310,-3316.01553422,0.00028219,2]
[311646397,1705278647319,-962.47119294,0.00028219,5]
[311646398,1705278647328,-261.12680454,0.00028219,2]
[311646399,1705278647337,-480.14482621,0.00028219,2]
[311646400,1705278647346,-35869.7490789,0.00028219,7]
[311646401,1705278647355,-327.20580692,0.00028219,2]
[311646402,1705278647365,-500.0,0.00028219,2]
[311646403,1705278647374,-1412.16,0.00028219,2]
[311646404,1705278647384,-266.20845407,0.00028219,2]
[311646405,1705278647394,-713.94,0.00028219,2]
[311646406,1705278647404,-500.0,0.00028219,2]
[311646407,1705278647413,-500.0,0.00028219,2]
[311646408,1705278647422,-893.21,0.00028219,2]
[311646409,1705278647431,-500.0,0.00028219,2]
[311646410,1705278647440,-500.0,0.00028219,2]
[311646411,1705278647449,-819.13,0.00028219,2]
[311646412,1705278647459,-500.0,0.00028219,2]